[Event "Early-Titled-Tuesday-Blitz-November-28-2023"]
[Site "Chess.com"]
[Date "2023.11.28"]
[Round "3"]
[White "margarita_2703"]
[Black "Eagle_2019"]
[Result "1-0"]
[WhiteElo "2334"]
[BlackElo "2668"]
[TimeControl "180+1"]
[EndTime "8:29:54 PST"]
[Termination "margarita_2703 won by resignation"]

1. e4 {[%clk 0:03:00.9]} 1... c5 {[%clk 0:02:58.1]} 2. Nf3 {[%clk 0:02:59.1]}
2... e6 {[%clk 0:02:58]} 3. c3 {[%clk 0:02:53.1]} 3... Nf6 {[%clk 0:02:57.1]} 4.
e5 {[%clk 0:02:51.8]} 4... Nd5 {[%clk 0:02:57.2]} 5. d4 {[%clk 0:02:52.1]} 5...
cxd4 {[%clk 0:02:57.1]} 6. Qxd4 {[%clk 0:02:52]} 6... Nc6 {[%clk 0:02:56.6]} 7.
Qe4 {[%clk 0:02:52.3]} 7... d6 {[%clk 0:02:55.3]} 8. Bb5 {[%clk 0:02:52.2]} 8...
Bd7 {[%clk 0:02:51.6]} 9. c4 {[%clk 0:02:52.2]} 9... Ndb4 {[%clk 0:02:44.6]} 10.
exd6 {[%clk 0:02:48]} 10... Bxd6 {[%clk 0:02:16.6]} 11. O-O {[%clk 0:02:41.1]}
11... a6 {[%clk 0:02:11.8]} 12. Ba4 {[%clk 0:02:41]} 12... Qa5 {[%clk
0:02:05.7]} 13. Nc3 {[%clk 0:02:32.1]} 13... Qf5 {[%clk 0:01:23.1]} 14. Rd1
{[%clk 0:02:15.3]} 14... Be5 {[%clk 0:00:49.7]} 15. a3 {[%clk 0:01:47.5]} 15...
b5 {[%clk 0:00:11.8]} 16. Qxf5 {[%clk 0:01:30.9]} 16... exf5 {[%clk 0:00:11.3]}
17. cxb5 {[%clk 0:01:31.1]} 17... axb5 {[%clk 0:00:10.9]} 18. Bxb5 {[%clk
0:01:31.1]} 18... Nc2 {[%clk 0:00:09.7]} 19. Bxc6 {[%clk 0:01:22.2]} 19... Bxc6
{[%clk 0:00:07.1]} 20. Nxe5 {[%clk 0:01:22.4]} 20... Nxa1 {[%clk 0:00:06.9]} 21.
Nxc6 {[%clk 0:01:22.3]} 21... Nb3 {[%clk 0:00:05.3]} 22. Re1+ {[%clk 0:01:16.2]}
22... Kd7 {[%clk 0:00:05]} 23. Ne5+ {[%clk 0:01:16.1]} 23... Kc7 {[%clk
0:00:03.1]} 24. Bf4 {[%clk 0:01:16]} 24... Kb6 {[%clk 0:00:03]} 25. Nc4+ {[%clk
0:01:12.2]} 25... Kc6 {[%clk 0:00:03]} 26. Ne5+ {[%clk 0:01:09.4]} 26... Kb6
{[%clk 0:00:03.1]} 27. Nxf7 {[%clk 0:01:09.5]} 27... Rhe8 {[%clk 0:00:03.3]} 28.
Be3+ {[%clk 0:01:09]} 28... Kc6 {[%clk 0:00:03]} 29. Rd1 {[%clk 0:01:05.6]}
29... f4 {[%clk 0:00:02.9]} 30. Bxf4 {[%clk 0:01:03.9]} 30... Rf8 {[%clk
0:00:03.1]} 31. Ne5+ {[%clk 0:01:03.7]} 31... Kb7 {[%clk 0:00:03.2]} 32. Be3
{[%clk 0:01:03.3]} 32... Rfe8 {[%clk 0:00:02.9]} 33. Nc4 {[%clk 0:01:02.1]}
33... Kc6 {[%clk 0:00:02.9]} 34. Rd6+ {[%clk 0:01:00.6]} 34... Kc7 {[%clk
0:00:03.2]} 35. Nd5+ {[%clk 0:00:52.7]} 35... Kb7 {[%clk 0:00:03.3]} 36. Rb6+
{[%clk 0:00:51.9]} 36... Kc8 {[%clk 0:00:03.5]} 37. Rxb3 {[%clk 0:00:51.6]}
37... Ra6 {[%clk 0:00:03.6]} 38. Kf1 {[%clk 0:00:49.4]} 38... Rd8 {[%clk
0:00:03.5]} 39. Rb6 {[%clk 0:00:47.4]} 39... Ra4 {[%clk 0:00:03]} 40. Nd6+
{[%clk 0:00:45.6]} 40... Kd7 {[%clk 0:00:03.3]} 41. Nc3 {[%clk 0:00:44.2]} 41...
Rg4 {[%clk 0:00:02.6]} 42. f3 {[%clk 0:00:42.7]} 42... Rg6 {[%clk 0:00:02.8]}
43. Nde4 {[%clk 0:00:42.1]} 43... Rxb6 {[%clk 0:00:02.5]} 44. Bxb6 {[%clk
0:00:43]} 44... Rb8 {[%clk 0:00:03.4]} 45. Na4 {[%clk 0:00:38.9]} 45... Kc6
{[%clk 0:00:03.4]} 46. b4 {[%clk 0:00:35.9]} 46... Kb5 {[%clk 0:00:03.6]} 47.
Nec5 {[%clk 0:00:34.3]} 47... Kc4 {[%clk 0:00:03.4]} 48. Kf2 {[%clk 0:00:34.2]}
48... Re8 {[%clk 0:00:03.5]} 49. Bc7 {[%clk 0:00:33.3]} 49... Re7 {[%clk
0:00:03.4]} 50. Bf4 {[%clk 0:00:33]} 50... Ra7 {[%clk 0:00:03.4]} 51. Be3 {[%clk
0:00:32.7]} 51... Kb5 {[%clk 0:00:03]} 52. Nc3+ {[%clk 0:00:31.9]} 52... Kc4
{[%clk 0:00:03.3]} 53. N5a4 {[%clk 0:00:27.4]} 53... Re7 {[%clk 0:00:03.5]} 54.
b5 {[%clk 0:00:26.8]} 54... Kb3 {[%clk 0:00:02.9]} 55. b6 {[%clk 0:00:26]} 55...
Kc4 {[%clk 0:00:02.9]} 56. Ne4 {[%clk 0:00:24.5]} 56... Kd5 {[%clk 0:00:02.5]}
57. Nac5 {[%clk 0:00:23.7]} 57... Kc6 {[%clk 0:00:02.5]} 58. b7 {[%clk 0:00:22]}
1-0

[Event "Early-Titled-Tuesday-Blitz-November-28-2023"]
[Site "Chess.com"]
[Date "2023.11.28"]
[Round "3"]
[White "Sadykov_Ramil"]
[Black "Nitzan_Steinberg"]
[Result "1-0"]
[WhiteElo "2707"]
[BlackElo "2902"]
[TimeControl "180+1"]
[EndTime "8:29:57 PST"]
[Termination "Sadykov_Ramil won by resignation"]

1. e4 {[%clk 0:03:00.9]} 1... e6 {[%clk 0:03:00.1]} 2. d4 {[%clk 0:03:00.4]}
2... d5 {[%clk 0:03:00.4]} 3. exd5 {[%clk 0:03:00.9]} 3... exd5 {[%clk
0:03:00.6]} 4. Bd3 {[%clk 0:03:01.6]} 4... c5 {[%clk 0:03:00.1]} 5. Bb5+ {[%clk
0:02:49.1]} 5... Nc6 {[%clk 0:02:57.4]} 6. Nf3 {[%clk 0:02:48.8]} 6... Nf6
{[%clk 0:02:50.3]} 7. O-O {[%clk 0:02:47.8]} 7... Be7 {[%clk 0:02:47.3]} 8. dxc5
{[%clk 0:02:46.2]} 8... O-O {[%clk 0:02:47.3]} 9. Be3 {[%clk 0:02:40.1]} 9...
Ng4 {[%clk 0:02:40.7]} 10. Bd4 {[%clk 0:02:34.1]} 10... Nxd4 {[%clk 0:02:38.5]}
11. Qxd4 {[%clk 0:02:21.1]} 11... Bf6 {[%clk 0:02:37.8]} 12. Qb4 {[%clk
0:02:20.3]} 12... a5 {[%clk 0:02:07.5]} 13. Qa3 {[%clk 0:02:18.8]} 13... Ne5
{[%clk 0:01:47.8]} 14. Nbd2 {[%clk 0:02:12]} 14... Bg4 {[%clk 0:01:32.8]} 15.
Be2 {[%clk 0:01:54.3]} 15... Re8 {[%clk 0:01:29.3]} 16. Rfe1 {[%clk 0:01:54]}
16... Bf5 {[%clk 0:01:23.9]} 17. Nd4 {[%clk 0:01:51]} 17... Bg6 {[%clk 0:01:18]}
18. Bb5 {[%clk 0:01:24.7]} 18... Re7 {[%clk 0:01:16.9]} 19. c3 {[%clk
0:01:10.2]} 19... Qc7 {[%clk 0:01:14]} 20. N2f3 {[%clk 0:01:01.4]} 20... h5
{[%clk 0:01:12.4]} 21. Rad1 {[%clk 0:00:57.8]} 21... Rc8 {[%clk 0:00:59.3]} 22.
b4 {[%clk 0:00:56.3]} 22... Be4 {[%clk 0:00:48]} 23. Be2 {[%clk 0:00:47.3]}
23... h4 {[%clk 0:00:30]} 24. h3 {[%clk 0:00:44.3]} 24... Rce8 {[%clk
0:00:27.1]} 25. Qxa5 {[%clk 0:00:29.1]} 25... Qxa5 {[%clk 0:00:24.3]} 26. bxa5
{[%clk 0:00:30]} 26... Rc8 {[%clk 0:00:19.8]} 27. Nxe5 {[%clk 0:00:16.8]} 27...
Bxe5 {[%clk 0:00:19.9]} 28. c6 {[%clk 0:00:08.8]} 28... bxc6 {[%clk 0:00:18]}
29. Bf3 {[%clk 0:00:05.3]} 29... f5 {[%clk 0:00:13]} 30. Bxe4 {[%clk 0:00:02.5]}
30... fxe4 {[%clk 0:00:13.5]} 31. f3 {[%clk 0:00:02.2]} 31... e3 {[%clk
0:00:12.1]} 32. Re2 {[%clk 0:00:01.6]} 32... g6 {[%clk 0:00:08.5]} 33. Kf1
{[%clk 0:00:01.3]} 33... c5 {[%clk 0:00:03]} 34. Nc2 {[%clk 0:00:01.6]} 34... d4
{[%clk 0:00:03.5]} 35. cxd4 {[%clk 0:00:01.7]} 35... cxd4 {[%clk 0:00:04.2]} 36.
Nxd4 {[%clk 0:00:02]} 36... Rd8 {[%clk 0:00:02.9]} 37. Rxe3 {[%clk 0:00:02.4]}
37... Kf7 {[%clk 0:00:02.5]} 38. Red3 {[%clk 0:00:01.9]} 38... Red7 {[%clk
0:00:03.1]} 39. f4 {[%clk 0:00:02]} 39... Bxd4 {[%clk 0:00:03.1]} 40. Ke2 {[%clk
0:00:02.1]} 40... Ke6 {[%clk 0:00:03.5]} 41. Kf3 {[%clk 0:00:02.7]} 41... Kf5
{[%clk 0:00:04.1]} 42. Re1 {[%clk 0:00:03]} 42... Rd5 {[%clk 0:00:04.4]} 43.
Red1 {[%clk 0:00:03.3]} 43... R8d6 {[%clk 0:00:04.1]} 44. R1d2 {[%clk
0:00:03.8]} 44... Kf6 {[%clk 0:00:03.1]} 45. a4 {[%clk 0:00:03.9]} 45... Kf5
{[%clk 0:00:03.6]} 46. Rd1 {[%clk 0:00:04]} 46... Ke6 {[%clk 0:00:04.1]} 47. Ke4
{[%clk 0:00:04.3]} 47... Kf6 {[%clk 0:00:01.7]} 48. Rxd4 {[%clk 0:00:04.6]}
48... Rxd4+ {[%clk 0:00:02.2]} 49. Rxd4 {[%clk 0:00:05.5]} 49... Re6+ {[%clk
0:00:03.1]} 50. Kf3 {[%clk 0:00:05.8]} 50... Ra6 {[%clk 0:00:03.6]} 51. Rd5
{[%clk 0:00:06.3]} 51... Ke6 {[%clk 0:00:04.3]} 52. Rb5 {[%clk 0:00:06.7]} 52...
Ra8 {[%clk 0:00:04.2]} 53. Rb6+ {[%clk 0:00:07.3]} 53... Kd5 {[%clk 0:00:04.2]}
54. a6 {[%clk 0:00:07.4]} 54... Kc5 {[%clk 0:00:03.3]} 55. Rxg6 {[%clk
0:00:07.6]} 55... Kb4 {[%clk 0:00:04]} 56. Kg4 {[%clk 0:00:08.1]} 56... Kxa4
{[%clk 0:00:04.6]} 57. Kxh4 {[%clk 0:00:08.6]} 57... Kb5 {[%clk 0:00:05.5]} 58.
Kg5 {[%clk 0:00:09.1]} 58... Kc5 {[%clk 0:00:06.2]} 59. g4 {[%clk 0:00:09.6]}
59... Kd5 {[%clk 0:00:06.8]} 60. f5 {[%clk 0:00:10.2]} 1-0

[Event "Early-Titled-Tuesday-Blitz-November-28-2023"]
[Site "Chess.com"]
[Date "2023.11.28"]
[Round "3"]
[White "Orishuas"]
[Black "DonCiao"]
[Result "1-0"]
[WhiteElo "2386"]
[BlackElo "2112"]
[TimeControl "180+1"]
[EndTime "8:29:59 PST"]
[Termination "Orishuas won on time"]

1. e4 {[%clk 0:03:00.9]} 1... c5 {[%clk 0:02:59.2]} 2. d4 {[%clk 0:02:59.8]}
2... cxd4 {[%clk 0:02:58.5]} 3. c3 {[%clk 0:02:59.9]} 3... Nf6 {[%clk
0:02:58.6]} 4. e5 {[%clk 0:02:58.2]} 4... Nd5 {[%clk 0:02:58.6]} 5. Qxd4 {[%clk
0:02:57.3]} 5... e6 {[%clk 0:02:55.9]} 6. Nf3 {[%clk 0:02:56.6]} 6... Nc6 {[%clk
0:02:55.8]} 7. Qe4 {[%clk 0:02:56.7]} 7... f5 {[%clk 0:02:53.2]} 8. Qe2 {[%clk
0:02:56.5]} 8... b6 {[%clk 0:02:50.5]} 9. g3 {[%clk 0:02:54.6]} 9... a5 {[%clk
0:02:49.5]} 10. Bg2 {[%clk 0:02:50.8]} 10... Ba6 {[%clk 0:02:49.3]} 11. c4
{[%clk 0:02:49.7]} 11... Bb4+ {[%clk 0:02:27.1]} 12. Bd2 {[%clk 0:02:45.8]}
12... O-O {[%clk 0:02:22]} 13. O-O {[%clk 0:02:44.4]} 13... Bxd2 {[%clk
0:02:18.3]} 14. Nbxd2 {[%clk 0:02:39.5]} 14... Rc8 {[%clk 0:02:13.1]} 15. a3
{[%clk 0:02:27.4]} 15... Nde7 {[%clk 0:02:00.8]} 16. Rfe1 {[%clk 0:02:18.1]}
16... Qc7 {[%clk 0:01:59.2]} 17. Rac1 {[%clk 0:02:16.1]} 17... a4 {[%clk
0:01:56.3]} 18. Qe3 {[%clk 0:01:47.6]} 18... Na5 {[%clk 0:01:50.5]} 19. Qg5
{[%clk 0:01:31.3]} 19... Rf7 {[%clk 0:01:45.3]} 20. Qf4 {[%clk 0:01:27.6]} 20...
Ng6 {[%clk 0:01:43.5]} 21. Qe3 {[%clk 0:01:21.4]} 21... Qc5 {[%clk 0:01:29.2]}
22. Ng5 {[%clk 0:01:13.7]} 22... Qxe3 {[%clk 0:01:23.3]} 23. Rxe3 {[%clk
0:01:12.7]} 23... Rff8 {[%clk 0:01:22.9]} 24. f4 {[%clk 0:01:09.5]} 24... Nxc4
{[%clk 0:01:12.9]} 25. Nxc4 {[%clk 0:01:09.5]} 25... Rxc4 {[%clk 0:01:11.9]} 26.
Rxc4 {[%clk 0:01:06]} 26... Bxc4 {[%clk 0:01:11]} 27. Rc3 {[%clk 0:01:06.5]}
27... b5 {[%clk 0:01:10.7]} 28. Bf1 {[%clk 0:01:06.2]} 28... Rc8 {[%clk
0:01:03.1]} 29. Bxc4 {[%clk 0:01:04.6]} 29... bxc4 {[%clk 0:00:59.9]} 30. Kf2
{[%clk 0:01:03.7]} 30... Ne7 {[%clk 0:01:00.1]} 31. Nf3 {[%clk 0:01:01.6]} 31...
Nd5 {[%clk 0:00:59.8]} 32. Rc2 {[%clk 0:01:01.5]} 32... c3 {[%clk 0:00:55.1]}
33. bxc3 {[%clk 0:01:00.3]} 33... Rxc3 {[%clk 0:00:52.6]} 34. Rxc3 {[%clk
0:01:00.1]} 34... Nxc3 {[%clk 0:00:52.7]} 35. Nd4 {[%clk 0:00:59]} 35... Kf8
{[%clk 0:00:42.3]} 36. Ke3 {[%clk 0:00:58.7]} 36... Ke7 {[%clk 0:00:39.1]} 37.
Kd3 {[%clk 0:00:58.5]} 37... Nd5 {[%clk 0:00:37.8]} 38. Nb5 {[%clk 0:00:56.3]}
38... h6 {[%clk 0:00:33.7]} 39. h4 {[%clk 0:00:54.8]} 39... g6 {[%clk
0:00:25.4]} 40. Kd4 {[%clk 0:00:54.8]} 40... Nb6 {[%clk 0:00:20]} 41. Kc5 {[%clk
0:00:49.8]} 41... Nd5 {[%clk 0:00:19.8]} 42. Kd4 {[%clk 0:00:46.3]} 42... Nb6
{[%clk 0:00:19.1]} 43. Nd6 {[%clk 0:00:44.1]} 43... Nd5 {[%clk 0:00:16]} 44. Nc4
{[%clk 0:00:42.3]} 44... Nc7 {[%clk 0:00:15]} 45. Nb2 {[%clk 0:00:40.5]} 45...
Nb5+ {[%clk 0:00:14.3]} 46. Kc5 {[%clk 0:00:38.3]} 46... Nxa3 {[%clk 0:00:14.2]}
47. Nxa4 {[%clk 0:00:38.6]} 47... Nc2 {[%clk 0:00:14.2]} 48. Nc3 {[%clk
0:00:34]} 48... Ne3 {[%clk 0:00:14]} 49. Ne2 {[%clk 0:00:33.5]} 49... Nf1 {[%clk
0:00:10.3]} 50. Kd4 {[%clk 0:00:33.3]} 50... d6 {[%clk 0:00:08.9]} 51. exd6+
{[%clk 0:00:33.1]} 51... Kxd6 {[%clk 0:00:08.6]} 52. Kc4 {[%clk 0:00:31.2]}
52... Ne3+ {[%clk 0:00:07.4]} 53. Kd3 {[%clk 0:00:30.7]} 53... Ng4 {[%clk
0:00:07.3]} 54. Kd4 {[%clk 0:00:30]} 54... Nf6 {[%clk 0:00:07.4]} 55. Nc3 {[%clk
0:00:29.1]} 55... Nh5 {[%clk 0:00:07.5]} 56. Ne2 {[%clk 0:00:28.7]} 56... Nf6
{[%clk 0:00:06.1]} 57. Nc3 {[%clk 0:00:27]} 57... Nd5 {[%clk 0:00:05.2]} 58.
Nb5+ {[%clk 0:00:25.9]} 58... Kc6 {[%clk 0:00:04.6]} 59. Na3 {[%clk 0:00:25.1]}
59... Nf6 {[%clk 0:00:03.9]} 60. Ke5 {[%clk 0:00:24.4]} 60... Ne4 {[%clk
0:00:01.5]} 61. Kxe6 {[%clk 0:00:22.4]} 61... Nxg3 {[%clk 0:00:01.6]} 62. Kf6
{[%clk 0:00:21]} 62... Nh5+ {[%clk 0:00:01.7]} 63. Kxg6 {[%clk 0:00:20.9]} 63...
Nxf4+ {[%clk 0:00:01.8]} 64. Kxf5 {[%clk 0:00:20.9]} 1-0

[Event "Early-Titled-Tuesday-Blitz-November-28-2023"]
[Site "Chess.com"]
[Date "2023.11.28"]
[Round "3"]
[White "zeitnotakrobat"]
[Black "Lady_Nika"]
[Result "1/2-1/2"]
[WhiteElo "2425"]
[BlackElo "2577"]
[TimeControl "180+1"]
[EndTime "8:30:02 PST"]
[Termination "Game drawn by repetition"]

1. Nf3 {[%clk 0:03:00.9]} 1... d5 {[%clk 0:02:59.4]} 2. c4 {[%clk 0:03:00.8]}
2... c6 {[%clk 0:02:59.4]} 3. b3 {[%clk 0:03:00]} 3... Nf6 {[%clk 0:02:59.7]} 4.
Bb2 {[%clk 0:03:00.2]} 4... g6 {[%clk 0:03:00]} 5. g3 {[%clk 0:03:00.1]} 5...
Bg7 {[%clk 0:03:00.1]} 6. Bg2 {[%clk 0:03:00.4]} 6... O-O {[%clk 0:03:00.4]} 7.
O-O {[%clk 0:03:00.4]} 7... Nbd7 {[%clk 0:03:00.9]} 8. d3 {[%clk 0:03:00.4]}
8... Re8 {[%clk 0:03:01.1]} 9. Nbd2 {[%clk 0:02:52.2]} 9... e5 {[%clk
0:03:00.5]} 10. Qc2 {[%clk 0:02:48.1]} 10... d4 {[%clk 0:02:59.5]} 11. Rad1
{[%clk 0:02:46]} 11... c5 {[%clk 0:02:59.4]} 12. Rfe1 {[%clk 0:02:44.6]} 12...
Nf8 {[%clk 0:02:58.9]} 13. e3 {[%clk 0:02:44.5]} 13... Bg4 {[%clk 0:02:58.3]}
14. exd4 {[%clk 0:02:43.4]} 14... exd4 {[%clk 0:02:58.3]} 15. h3 {[%clk
0:02:42.7]} 15... Bxf3 {[%clk 0:02:57.1]} 16. Nxf3 {[%clk 0:02:41]} 16... Qc7
{[%clk 0:02:57.2]} 17. Bc1 {[%clk 0:02:40]} 17... Nh5 {[%clk 0:02:53.3]} 18. Qd2
{[%clk 0:02:14.5]} 18... Ne6 {[%clk 0:02:47.9]} 19. Kh2 {[%clk 0:02:08.5]} 19...
Re7 {[%clk 0:02:45.3]} 20. Re2 {[%clk 0:02:04.6]} 20... Rae8 {[%clk 0:02:44.6]}
21. Rde1 {[%clk 0:02:04.7]} 21... Bf6 {[%clk 0:02:42.5]} 22. Kg1 {[%clk
0:01:58.1]} 22... b6 {[%clk 0:02:30.3]} 23. Qd1 {[%clk 0:01:54.7]} 23... Nhg7
{[%clk 0:02:24.9]} 24. Nd2 {[%clk 0:01:53.3]} 24... Nf5 {[%clk 0:02:23]} 25. Ne4
{[%clk 0:01:53.2]} 25... Bg7 {[%clk 0:02:23.2]} 26. Ng5 {[%clk 0:01:49.1]} 26...
Ne3 {[%clk 0:01:12.3]} 27. Bxe3 {[%clk 0:01:03]} 27... dxe3 {[%clk 0:01:11.3]}
28. Nxe6 {[%clk 0:00:57.6]} 28... exf2+ {[%clk 0:01:09.7]} 29. Kxf2 {[%clk
0:00:57.7]} 29... Rxe6 {[%clk 0:01:08.1]} 30. Bd5 {[%clk 0:00:48.1]} 30... Bd4+
{[%clk 0:00:47.5]} 31. Kg2 {[%clk 0:00:48]} 31... Re5 {[%clk 0:00:39.8]} 32.
Rxe5 {[%clk 0:00:45.9]} 32... Rxe5 {[%clk 0:00:39.5]} 33. Rxe5 {[%clk
0:00:44.1]} 33... Qxe5 {[%clk 0:00:39.5]} 34. Qf3 {[%clk 0:00:44.3]} 34... Qe7
{[%clk 0:00:37.3]} 35. Qe4 {[%clk 0:00:42.6]} 35... Qd7 {[%clk 0:00:32.1]} 36.
h4 {[%clk 0:00:37.1]} 36... Kg7 {[%clk 0:00:29.8]} 37. h5 {[%clk 0:00:33.2]}
37... Qd6 {[%clk 0:00:28.6]} 38. Qf3 {[%clk 0:00:30.9]} 38... f5 {[%clk
0:00:25.5]} 39. hxg6 {[%clk 0:00:29.7]} 39... hxg6 {[%clk 0:00:25.2]} 40. Qe2
{[%clk 0:00:28.7]} 40... Qd7 {[%clk 0:00:18.4]} 41. Qe6 {[%clk 0:00:25.1]} 41...
Qxe6 {[%clk 0:00:15.5]} 42. Bxe6 {[%clk 0:00:25.3]} 42... Kf6 {[%clk 0:00:16.4]}
43. Bd5 {[%clk 0:00:25.5]} 43... g5 {[%clk 0:00:16.4]} 44. Kf3 {[%clk
0:00:24.9]} 44... Ke5 {[%clk 0:00:16.5]} 45. Bb7 {[%clk 0:00:23.5]} 45... Bb2
{[%clk 0:00:16.3]} 46. Bc8 {[%clk 0:00:22.7]} 46... Bc1 {[%clk 0:00:16.5]} 47.
Bd7 {[%clk 0:00:20.7]} 47... Bd2 {[%clk 0:00:16.2]} 48. Bc8 {[%clk 0:00:20.5]}
48... g4+ {[%clk 0:00:14]} 49. Kf2 {[%clk 0:00:19.8]} 49... f4 {[%clk
0:00:10.2]} 50. Bxg4 {[%clk 0:00:19.2]} 50... fxg3+ {[%clk 0:00:10.1]} 51. Kxg3
{[%clk 0:00:19.5]} 51... Kd4 {[%clk 0:00:11]} 52. Bf5 {[%clk 0:00:18.9]} 52...
Kc3 {[%clk 0:00:11]} 53. Kf3 {[%clk 0:00:19]} 53... Bg5 {[%clk 0:00:10.3]} 54.
Ke4 {[%clk 0:00:16.8]} 54... Bf6 {[%clk 0:00:09.7]} 55. Kd5 {[%clk 0:00:16.2]}
55... Kb2 {[%clk 0:00:08.2]} 56. Kc6 {[%clk 0:00:16.4]} 56... Kxa2 {[%clk
0:00:08.1]} 57. Kb7 {[%clk 0:00:16.7]} 57... Kxb3 {[%clk 0:00:08.5]} 58. Kxa7
{[%clk 0:00:16.8]} 58... Kc3 {[%clk 0:00:07.4]} 59. Kxb6 {[%clk 0:00:16.8]}
59... Bd4 {[%clk 0:00:07.9]} 60. Kc6 {[%clk 0:00:16.9]} 60... Kd2 {[%clk
0:00:08.4]} 61. Kd5 {[%clk 0:00:17.1]} 61... Kc3 {[%clk 0:00:08.9]} 62. Be4
{[%clk 0:00:17]} 62... Kd2 {[%clk 0:00:09.6]} 63. Bf5 {[%clk 0:00:16.4]} 63...
Kc3 {[%clk 0:00:10.5]} 64. Be4 {[%clk 0:00:16.4]} 64... Kd2 {[%clk 0:00:11.4]}
65. Bf5 {[%clk 0:00:16.7]} 1/2-1/2

[Event "Early-Titled-Tuesday-Blitz-November-28-2023"]
[Site "Chess.com"]
[Date "2023.11.28"]
[Round "3"]
[White "MKlose11"]
[Black "Kirill_Klukin"]
[Result "1/2-1/2"]
[WhiteElo "2623"]
[BlackElo "2854"]
[TimeControl "180+1"]
[EndTime "8:30:03 PST"]
[Termination "Game drawn - insufficient material"]

1. e4 {[%clk 0:03:00.9]} 1... c5 {[%clk 0:03:00.1]} 2. Nc3 {[%clk 0:03:00.7]}
2... g6 {[%clk 0:03:00.7]} 3. g3 {[%clk 0:03:01.1]} 3... Bg7 {[%clk 0:03:00.8]}
4. Bg2 {[%clk 0:03:01.8]} 4... Nc6 {[%clk 0:03:01.4]} 5. d3 {[%clk 0:03:02.3]}
5... e6 {[%clk 0:03:01.9]} 6. Be3 {[%clk 0:03:02.4]} 6... Nd4 {[%clk 0:02:57]}
7. Qd2 {[%clk 0:03:02.5]} 7... h5 {[%clk 0:02:54.9]} 8. h3 {[%clk 0:03:02]} 8...
Ne7 {[%clk 0:02:55]} 9. Nd1 {[%clk 0:03:01.7]} 9... d6 {[%clk 0:02:51.7]} 10. c3
{[%clk 0:03:01.9]} 10... Ndc6 {[%clk 0:02:52.4]} 11. Ne2 {[%clk 0:03:02.7]}
11... b6 {[%clk 0:02:51.6]} 12. O-O {[%clk 0:02:59.7]} 12... Bb7 {[%clk
0:02:52.1]} 13. d4 {[%clk 0:02:59.1]} 13... O-O {[%clk 0:02:49.7]} 14. Bh6
{[%clk 0:02:54.1]} 14... cxd4 {[%clk 0:02:45.2]} 15. Bxg7 {[%clk 0:02:51.7]}
15... Kxg7 {[%clk 0:02:45.1]} 16. Nxd4 {[%clk 0:02:52.3]} 16... Nxd4 {[%clk
0:02:35]} 17. cxd4 {[%clk 0:02:35.2]} 17... Rc8 {[%clk 0:02:31.5]} 18. Ne3
{[%clk 0:02:23.8]} 18... Qd7 {[%clk 0:02:29.6]} 19. Rfc1 {[%clk 0:02:19.3]}
19... Rfd8 {[%clk 0:02:18.7]} 20. h4 {[%clk 0:02:18]} 20... Nc6 {[%clk
0:02:15.7]} 21. d5 {[%clk 0:02:11.7]} 21... exd5 {[%clk 0:02:14]} 22. Nxd5
{[%clk 0:02:10.5]} 22... Ne5 {[%clk 0:02:12.7]} 23. f4 {[%clk 0:02:05.1]} 23...
Bxd5 {[%clk 0:01:54.5]} 24. Qxd5 {[%clk 0:01:57.9]} 24... Ng4 {[%clk 0:01:48.6]}
25. Rxc8 {[%clk 0:01:53.4]} 25... Rxc8 {[%clk 0:01:45]} 26. Rd1 {[%clk
0:01:53.4]} 26... Rc2 {[%clk 0:01:28.6]} 27. Bh3 {[%clk 0:01:45.1]} 27... Qa4
{[%clk 0:01:15.6]} 28. Bxg4 {[%clk 0:01:22.3]} 28... hxg4 {[%clk 0:01:14.4]} 29.
Qxd6 {[%clk 0:01:18.1]} 29... Qxe4 {[%clk 0:01:11.9]} 30. Qd4+ {[%clk
0:01:04.5]} 30... Qxd4+ {[%clk 0:01:04.6]} 31. Rxd4 {[%clk 0:01:05.4]} 31...
Rxb2 {[%clk 0:01:05.1]} 32. a4 {[%clk 0:01:04.1]} 32... Kf6 {[%clk 0:01:00.9]}
33. Kf1 {[%clk 0:01:03.9]} 33... Ke6 {[%clk 0:00:58.2]} 34. Ke1 {[%clk 0:01:01]}
34... Rg2 {[%clk 0:00:54.6]} 35. Rd3 {[%clk 0:01:00.7]} 35... Kf6 {[%clk
0:00:41.1]} 36. a5 {[%clk 0:00:59.7]} 36... bxa5 {[%clk 0:00:36.8]} 37. Ra3
{[%clk 0:00:59.7]} 37... Rc2 {[%clk 0:00:24]} 38. Rxa5 {[%clk 0:00:57.9]} 38...
Rc7 {[%clk 0:00:24.7]} 39. Ke2 {[%clk 0:00:54.1]} 39... Ke6 {[%clk 0:00:23]} 40.
Ke3 {[%clk 0:00:52.8]} 40... Kd6 {[%clk 0:00:22.2]} 41. Kd4 {[%clk 0:00:49.4]}
41... Kc6 {[%clk 0:00:21.4]} 42. Ke5 {[%clk 0:00:43.4]} 42... Kb6 {[%clk
0:00:21.5]} 43. Ra3 {[%clk 0:00:41.3]} 43... a5 {[%clk 0:00:21.7]} 44. Kf6
{[%clk 0:00:41.7]} 44... Kb5 {[%clk 0:00:20.7]} 45. f5 {[%clk 0:00:38.8]} 45...
Rc6+ {[%clk 0:00:15.2]} 46. Kxf7 {[%clk 0:00:37.7]} 46... gxf5 {[%clk
0:00:15.6]} 47. h5 {[%clk 0:00:37.1]} 47... Kb4 {[%clk 0:00:15.5]} 48. Ra1
{[%clk 0:00:35.7]} 48... a4 {[%clk 0:00:14.2]} 49. Kg7 {[%clk 0:00:36.1]} 49...
Kb3 {[%clk 0:00:13]} 50. h6 {[%clk 0:00:36.5]} 50... a3 {[%clk 0:00:12.7]} 51.
h7 {[%clk 0:00:36.8]} 51... Rc7+ {[%clk 0:00:13.3]} 52. Kg6 {[%clk 0:00:34.4]}
52... Rc8 {[%clk 0:00:11.4]} 53. Kxf5 {[%clk 0:00:30.4]} 53... Kb2 {[%clk
0:00:11.7]} 54. Rh1 {[%clk 0:00:28]} 54... a2 {[%clk 0:00:10.1]} 55. Kxg4 {[%clk
0:00:23.4]} 55... Rh8 {[%clk 0:00:10]} 56. Rh2+ {[%clk 0:00:14.5]} 56... Kb3
{[%clk 0:00:09.7]} 57. Rxa2 {[%clk 0:00:10.7]} 57... Kxa2 {[%clk 0:00:10.6]} 58.
Kf5 {[%clk 0:00:11]} 58... Rxh7 {[%clk 0:00:11.1]} 59. g4 {[%clk 0:00:11.6]}
59... Kb3 {[%clk 0:00:11.5]} 60. g5 {[%clk 0:00:11.7]} 60... Kc4 {[%clk
0:00:12.1]} 61. g6 {[%clk 0:00:11.8]} 61... Rh1 {[%clk 0:00:12.6]} 62. g7 {[%clk
0:00:11.2]} 62... Rg1 {[%clk 0:00:12.9]} 63. Kf6 {[%clk 0:00:11.7]} 63... Kd5
{[%clk 0:00:13.5]} 64. Kf7 {[%clk 0:00:12.1]} 64... Rf1+ {[%clk 0:00:13.9]} 65.
Ke8 {[%clk 0:00:12]} 65... Re1+ {[%clk 0:00:13.7]} 66. Kf7 {[%clk 0:00:12.3]}
66... Rf1+ {[%clk 0:00:14.3]} 67. Ke8 {[%clk 0:00:12.8]} 67... Rg1 {[%clk
0:00:15]} 68. Kf7 {[%clk 0:00:12.7]} 68... Kd6 {[%clk 0:00:14.8]} 69. g8=Q
{[%clk 0:00:12.8]} 69... Rxg8 {[%clk 0:00:15.7]} 70. Kxg8 {[%clk 0:00:13.6]}
1/2-1/2